bitfinex-derivatives/quotes_BTCF0:USTF0_20250626
["timestamp","ask_amount","ask_price","bid_price","bid_amount"]
[1750979401962,0.2938245,106950.0,106940.0,1.54926403]
[1750979403068,0.50625097,106950.0,106940.0,1.47392837]
[1750979404368,0.2938245,106950.0,106940.0,1.47392837]
[1750979407061,0.2938245,106950.0,106940.0,1.28698647]
[1750979407268,0.2938245,106950.0,106940.0,1.47392847]
[1750979407764,0.2938245,106950.0,106940.0,0.89772847]
[1750979407967,0.2938245,106950.0,106940.0,1.47392847]
[1750979408167,0.50625097,106950.0,106940.0,1.47392847]
[1750979409172,0.50625097,106950.0,106940.0,1.261502]
[1750979409468,0.52625097,106950.0,106940.0,1.28698647]
[1750979409657,0.52625097,106950.0,106940.0,0.34998647]
[1750979409863,0.52625097,106950.0,106940.0,0.92706647]
[1750979410067,0.52625097,106950.0,106940.0,1.11400847]
[1750979411871,0.3138245,106950.0,106940.0,0.71464]
[1750979413372,0.2938245,106950.0,106940.0,0.71464]
[1750979413672,0.4138245,106950.0,106940.0,0.71464]
[1750979413864,0.4138245,106950.0,106940.0,0.71484]
[1750979414265,0.4138245,106950.0,106940.0,0.92726647]
[1750979414465,0.7746245,106950.0,106940.0,0.71484]
[1750979414665,0.7746245,106950.0,106940.0,0.13756]
[1750979414970,0.7746245,106950.0,106940.0,0.715]
[1750979415475,0.98705097,106950.0,106940.0,0.92742647]
[1750979416179,0.62625097,106950.0,106940.0,0.92742647]
[1750979418768,0.69981192,106950.0,106940.0,0.92742647]
[1750979419971,0.4138245,106950.0,106940.0,1.11436837]
[1750979420167,0.4138245,106950.0,106940.0,1.47516837]
[1750979420368,0.3209245,106950.0,106940.0,1.57096837]
[1750979420569,0.3209245,106950.0,106940.0,1.3585419]
[1750979420876,0.2009245,106950.0,106940.0,1.3585419]
[1750979421272,0.2009245,106950.0,106940.0,1.57096837]
[1750979423176,0.2009245,106950.0,106940.0,1.64402066]
[1750979423876,0.014,106950.0,106940.0,1.64402066]
[1750979424182,0.2009244,106950.0,106940.0,1.64402066]
[1750979425177,0.014,106950.0,106940.0,1.64402066]
[1750979426882,0.014,106950.0,106940.0,1.43159419]
[1750979427276,0.2009245,106950.0,106940.0,1.43159419]
[1750979427480,0.2009245,106950.0,106940.0,1.64402066]
[1750979427878,0.014,106950.0,106940.0,1.64402066]
[1750979433584,0.3591791,106970.0,106960.0,0.186907]
[1750979433786,0.4691791,106970.0,106960.0,1.64038233]
[1750979434084,0.2335966,106980.0,106970.0,0.1868895]
[1750979434287,0.3035966,106980.0,106970.0,1.4824095]
[1750979434584,0.256872,106980.0,106970.0,1.4824095]
[1750979435284,0.264872,106980.0,106970.0,1.4834095]
[1750979435984,0.194872,106980.0,106970.0,1.4834095]
[1750979436185,0.008,106980.0,106970.0,1.4834095]
[1750979436882,0.3618,107000.0,106970.0,1.4834095]
[1750979436883,0.0944217,107000.0,106970.0,1.29552]
[1750979437080,0.002,106980.0,106970.0,1.4208095]
[1750979437282,0.002,106980.0,106970.0,2.4965295]
[1750979437788,0.2652587,107000.0,106990.0,0.1868545]
[1750979437983,0.38913997,107000.0,106990.0,1.27925659]
[1750979438388,0.38913997,107000.0,106990.0,1.31125659]
[1750979438588,0.38413997,107000.0,106990.0,1.31125659]
[1750979439291,0.38413997,107000.0,106990.0,0.59637659]
[1750979439587,0.74493997,107000.0,106990.0,0.01672209]
[1750979439785,0.77523997,107000.0,106990.0,0.01672209]
[1750979439989,1.05818836,107000.0,106990.0,0.01672209]
[1750979440288,1.05818836,107000.0,106990.0,0.73168209]
[1750979440489,1.06618836,107000.0,106990.0,0.73368209]
[1750979440991,1.06618836,107000.0,106990.0,0.15544209]
[1750979441183,1.06618836,107000.0,106990.0,0.73372209]
[1750979443191,0.78323997,107000.0,106990.0,0.73372209]
[1750979443687,0.78323997,107000.0,106990.0,1.01667048]
[1750979448900,0.78323997,107000.0,106990.0,1.01591048]
[1750979452496,0.78323997,107000.0,106990.0,0.73296209]
[1750979452705,0.78323997,107000.0,106990.0,1.01591048]
[1750979453201,0.42243997,107000.0,106990.0,1.01591048]
[1750979453401,0.78323997,107000.0,106990.0,1.01591048]
[1750979455300,0.78323997,107000.0,106990.0,0.30167048]
[1750979455506,0.78323997,107000.0,106990.0,1.01631048]
[1750979456202,0.78323997,107000.0,106990.0,0.30167048]
[1750979456408,0.78323997,107000.0,106990.0,1.01643048]
[1750979456798,0.81653997,107000.0,106990.0,1.01643048]
[1750979458406,1.09948836,107000.0,106990.0,9e-08]
[1750979458605,1.09948836,107000.0,106990.0,0.71448009]
[1750979460001,0.81653997,107000.0,106990.0,0.99742848]
[1750979462412,0.84339359,107000.0,106990.0,0.99742848]
[1750979463311,0.39213997,107000.0,106990.0,1.26213459]
[1750979463604,0.3615587,107000.0,106990.0,1.35533459]
[1750979466612,0.38844865,107000.0,106990.0,1.35533459]
[1750979467212,0.38844865,107000.0,106990.0,1.3645901]
[1750979469015,0.3615587,107000.0,106990.0,1.3645901]
[1750979471313,0.3615587,107000.0,106990.0,0.6501101]
[1750979471517,0.3615587,107000.0,106990.0,1.3648301]
[1750979473306,0.128,107000.0,106990.0,1.3648301]
[1750979473716,0.3148371,107000.0,106990.0,1.3648301]
[1750979474018,0.128,107000.0,106990.0,1.3648301]
[1750979474415,0.008,107000.0,106990.0,1.3648301]
[1750979476030,0.003,107000.0,106990.0,1.36683001]
[1750979479831,0.1898371,107000.0,106990.0,1.36683001]
[1750979483631,0.1898371,107000.0,106990.0,0.65211001]
[1750979484029,0.1898371,107000.0,106990.0,1.36575001]
[1750979485533,0.1898371,107000.0,106990.0,0.65211001]
[1750979485728,0.5506371,107000.0,106990.0,1.17583001]
[1750979485932,0.2851371,107000.0,106990.0,1.75283001]
[1750979486132,0.2851371,107000.0,106990.0,2.11363001]
[1750979486333,0.2851371,107000.0,106990.0,1.75283001]
[1750979487934,0.2851371,107000.0,106990.0,1.75295001]
[1750979491932,0.3157371,107000.0,106990.0,1.75295001]
[1750979492631,0.3157371,107000.0,106990.0,1.75239001]
[1750979493128,0.3157371,107000.0,106990.0,2.11319001]
[1750979495933,0.2198371,107000.0,106990.0,2.11319001]
[1750979496437,0.3148371,107000.0,106990.0,2.11319001]
[1750979502436,0.1898371,107000.0,106990.0,2.17609001]
[1750979502639,0.1898371,107000.0,106990.0,2.20649001]
[1750979503138,0.003,107000.0,106990.0,2.20649001]
[1750979503335,0.189837,107000.0,106990.0,2.20649001]
[1750979505144,0.003,107000.0,106990.0,2.20649001]
[1750979505546,0.189837,107000.0,106990.0,2.20649001]
[1750979508645,0.003,107000.0,106990.0,2.20649001]
[1750979510653,0.003,107000.0,106990.0,2.56729001]
[1750979511151,0.189837,107000.0,106990.0,2.56729001]
[1750979511347,0.189837,107000.0,106990.0,1.85413001]
[1750979511552,0.289037,107000.0,106990.0,2.56637001]
[1750979511953,0.256237,107000.0,106990.0,2.56637001]
[1750979512251,0.189837,107000.0,106990.0,2.56637001]
[1750979513952,0.189837,107000.0,106990.0,2.20557001]
[1750979521753,0.220137,107000.0,106990.0,2.20557001]
[1750979521957,0.283637,107000.0,106990.0,2.20557001]
[1750979523762,0.0342,107000.0,106990.0,2.20557001]
[1750979524154,0.003,107000.0,106990.0,2.20557001]
[1750979532166,0.003,107000.0,106990.0,2.56637001]
[1750979532663,0.003,107000.0,106990.0,1.84477001]
[1750979532964,0.003,107000.0,106990.0,2.56637001]
[1750979540166,0.3275306,107010.0,107000.0,0.186837]
[1750979540167,0.094,107010.0,107000.0,0.186837]
[1750979540361,0.30780563,107010.0,107000.0,0.547637]
[1750979540562,0.2808195,107010.0,107000.0,0.547637]
[1750979540765,0.2808195,107010.0,107000.0,0.83058539]
[1750979542164,0.2808195,107010.0,107000.0,1.19138539]
[1750979542364,0.2808195,107010.0,107000.0,0.909437]
[1750979542563,0.2838195,107010.0,107000.0,0.909437]
[1750979542963,0.2838195,107010.0,107000.0,0.98554008]
[1750979543170,0.2868195,107010.0,107000.0,1.19869136]
[1750979544563,0.1,107010.0,107000.0,1.19869136]
[1750979544766,0.03298171,107010.0,107000.0,1.19869136]
[1750979544969,0.0951,107020.0,107010.0,0.1868195]
[1750979545176,0.145,107020.0,107010.0,1.37023359]
[1750979545871,0.3318021,107020.0,107010.0,1.37023359]
[1750979546266,0.3619021,107020.0,107010.0,1.37023359]
[1750979546469,0.3669021,107020.0,107010.0,1.37123359]
[1750979547267,0.3669021,107020.0,107010.0,1.27733359]
[1750979547461,0.3649021,107020.0,107010.0,1.27733359]
[1750979548675,0.1781,107020.0,107010.0,1.27733359]
[1750979548874,0.1811,107020.0,107010.0,1.27833359]
[1750979549575,0.1791,107020.0,107010.0,1.27733359]
[1750979551271,0.365902,107020.0,107010.0,1.27733359]
[1750979552970,0.1791,107020.0,107010.0,1.27733359]
[1750979553473,0.3659021,107020.0,107010.0,1.27733359]
[1750979554977,0.1791,107020.0,107010.0,1.27733359]
[1750979555778,0.004,107020.0,107010.0,1.27733359]
[1750979555970,0.004,107020.0,107010.0,1.37033359]
[1750979556570,0.0999,107020.0,107010.0,1.37033359]
[1750979557679,0.2867021,107020.0,107010.0,1.37033359]
[1750979560277,0.0999,107020.0,107010.0,1.37033359]
[1750979562283,0.286702,107020.0,107010.0,1.37033359]
[1750979564281,0.286702,107020.0,107010.0,0.56545359]
[1750979564475,0.667502,107020.0,107010.0,0.001]
[1750979564678,0.1868195,107010.0,107000.0,0.21170308]
[1750979564879,0.9689195,107010.0,107000.0,0.61184]
[1750979565079,1.25173389,107010.0,107000.0,0.61184]
[1750979566081,1.25273389,107010.0,107000.0,0.61384]
[1750979566288,1.00273389,107010.0,107000.0,0.71364]
[1750979567091,1.00473389,107010.0,107000.0,0.71364]
[1750979567986,1.03513389,107010.0,107000.0,0.71364]
[1750979568588,0.7523195,107010.0,107000.0,0.71368]
[1750979568888,0.7523195,107010.0,107000.0,0.900517]
[1750979569480,0.7523195,107010.0,107000.0,0.71368]
[1750979569676,0.3915195,107010.0,107000.0,0.99649439]
[1750979569882,0.3905195,107010.0,107000.0,1.18133139]
[1750979570082,0.3935195,107010.0,107000.0,1.18233139]
[1750979571482,0.3935195,107010.0,107000.0,1.54313139]
[1750979571684,0.3935195,107010.0,107000.0,1.61956622]
[1750979572294,0.3915195,107010.0,107000.0,1.61956622]
[1750979572591,0.3945195,107010.0,107000.0,1.07292922]
[1750979573493,0.3945195,107010.0,107000.0,1.25976612]
[1750979573696,0.3915195,107010.0,107000.0,1.25876612]
[1750979573896,0.3955195,107010.0,107000.0,1.25976612]
[1750979574497,0.3955195,107010.0,107000.0,1.07292922]
[1750979574692,0.3955195,107010.0,107000.0,0.79011483]
[1750979574892,0.7563195,107010.0,107000.0,0.79011483]
[1750979575093,0.7563195,107010.0,107000.0,0.78911483]
[1750979575400,1.03613389,107010.0,107000.0,0.79011483]
[1750979575897,1.03613389,107010.0,107000.0,0.07843483]
[1750979576295,0.46966869,106990.0,106980.0,0.14483422]
[1750979576496,0.89046869,106990.0,106980.0,0.71983549]
[1750979576692,0.92326869,106990.0,106980.0,0.71983549]
[1750979576894,0.92326869,106990.0,106980.0,0.71176]
[1750979577404,0.1868719,106980.0,106970.0,0.841]
[1750979577593,0.7008719,106980.0,106970.0,1.55276]
[1750979577993,0.7008719,106980.0,106970.0,1.7396494]
[1750979578199,0.7008719,106980.0,106970.0,1.44634379]
[1750979578403,0.7008719,106980.0,106970.0,2.02246379]
[1750979578708,0.7008719,106980.0,106970.0,2.0318373]
[1750979579203,0.2768719,106980.0,106970.0,2.0318373]
[1750979579405,0.2778719,106980.0,106970.0,1.81512291]
[1750979579605,0.3096719,106980.0,106970.0,1.81712291]
[1750979579807,0.3096719,106980.0,106970.0,1.83411886]
[1750979580003,0.1878719,106980.0,106970.0,2.19491886]
[1750979580407,0.2214719,106980.0,106970.0,2.19091886]
[1750979580605,0.2214719,106980.0,106970.0,2.11293325]
[1750979581609,0.2214719,106980.0,106970.0,1.83011886]
[1750979581808,0.2214719,106980.0,106970.0,1.86191886]
[1750979591609,0.2214719,106980.0,106970.0,1.67502946]
[1750979591916,0.2214719,106980.0,106970.0,1.86191876]
[1750979596723,0.2214719,106980.0,106970.0,1.15015876]
[1750979597023,0.2214719,106980.0,106970.0,1.86423876]
[1750979598623,0.2214719,106980.0,106970.0,1.67734946]
[1750979598823,0.2214719,106980.0,106970.0,2.14705325]
[1750979605726,0.2214719,106980.0,106970.0,1.86423886]
[1750979606922,0.2214719,106980.0,106970.0,0.40508385]
[1750979607127,0.7122719,106980.0,106970.0,0.002]
[1750979607432,1.05788629,106980.0,106970.0,0.57832]
[1750979607616,1.06788629,106980.0,106970.0,0.57832]
[1750979607821,1.09442916,106980.0,106970.0,0.57832]
[1750979608027,1.09442916,106980.0,106970.0,0.002]
[1750979608323,1.06788629,106980.0,106970.0,0.002]
[1750979608930,0.7850719,106980.0,106970.0,0.002]
[1750979609823,0.81160721,106980.0,106970.0,0.002]
[1750979610224,1.06788629,106980.0,106970.0,0.002]
[1750979610429,1.09441754,106980.0,106970.0,0.002]
[1750979613229,0.73361754,106980.0,106970.0,0.002]
[1750979613432,1.45521754,106980.0,106970.0,0.002]
[1750979616232,1.17240315,106980.0,106970.0,0.002]
[1750979617627,1.45521754,106980.0,106970.0,0.002]
[1750979620238,1.17240315,106980.0,106970.0,0.002]
[1750979620436,1.45521754,106980.0,106970.0,0.002]
[1750979622940,0.73361754,106980.0,106970.0,0.002]
[1750979623133,1.45521754,106980.0,106970.0,0.002]
[1750979623538,1.39241754,106980.0,106970.0,0.002]
[1750979623734,0.38800315,106980.0,106970.0,0.92375439]
[1750979623944,0.38800315,106980.0,106970.0,0.95455439]
[1750979624743,0.74880315,106980.0,106970.0,0.95455439]
[1750979624945,0.71620315,106980.0,106970.0,0.95455439]
[1750979627341,0.3288719,106980.0,106970.0,1.15849658]
[1750979628047,0.6896719,106980.0,106970.0,0.97160728]
[1750979628244,0.3288719,106980.0,106970.0,0.68879289]
[1750979628547,0.6896719,106980.0,106970.0,0.68879289]
[1750979629649,0.5596719,106980.0,106970.0,0.68879289]
[1750979629950,0.3288719,106980.0,106970.0,0.68879289]
[1750979630149,0.6896719,106980.0,106970.0,0.68879289]
[1750979633153,0.6996719,106980.0,106970.0,0.68879289]
[1750979635244,0.6996719,106980.0,106970.0,0.87568229]
[1750979635651,0.6996719,106980.0,106970.0,1.15849668]
[1750979636351,0.72611084,106980.0,106970.0,1.15849668]
[1750979637058,0.6996719,106980.0,106970.0,1.15849668]
[1750979641750,0.22531934,106980.0,106970.0,0.87568229]
[1750979642351,0.22531934,106980.0,106970.0,1.23648229]
[1750979642955,0.1988719,106980.0,106970.0,1.23648229]
[1750979647551,0.1988719,106980.0,106970.0,1.37208229]
[1750979647963,0.1988719,106980.0,106970.0,1.65489668]
[1750979648458,0.2499719,106980.0,106970.0,1.07853658]
[1750979648666,0.2499719,106980.0,106970.0,1.65489658]
[1750979649056,0.53278629,106980.0,106970.0,0.08155289]
[1750979649260,0.89358629,106980.0,106970.0,0.79355289]
[1750979650766,0.6107719,106980.0,106970.0,0.79355289]
[1750979651068,0.6107719,106980.0,106970.0,0.98044229]
[1750979652064,0.6107719,106980.0,106970.0,0.79355289]
[1750979652668,0.63722802,106980.0,106970.0,0.79355289]
[1750979653572,0.27642802,106980.0,106970.0,0.98044229]
[1750979653769,0.27642986,106980.0,106970.0,0.98044229]
[1750979653969,0.2499719,106980.0,106970.0,0.98044229]
[1750979654166,0.27642984,106980.0,106970.0,0.98044229]
[1750979655770,0.63722984,106980.0,106970.0,0.98044229]
[1750979657868,0.6107719,106980.0,106970.0,1.26325668]
[1750979660166,0.6107719,106980.0,106970.0,1.07636728]
[1750979660666,0.6107719,106980.0,106970.0,0.79355289]
[1750979661075,0.6107719,106980.0,106970.0,0.98044219]
[1750979662274,0.82312447,106980.0,106970.0,1.19279476]
[1750979662574,0.82312447,106980.0,106970.0,1.00590546]
[1750979663175,0.82312447,106980.0,106970.0,1.19279486]
[1750979663378,0.82312447,106980.0,106970.0,1.00590546]
[1750979663978,0.82312447,106980.0,106970.0,0.79355289]
[1750979664276,0.82312447,106980.0,106970.0,1.00590546]
[1750979664778,0.6107719,106980.0,106970.0,0.29390546]
[1750979664973,0.82312447,106980.0,106970.0,1.00578546]
[1750979665878,0.82312447,106980.0,106970.0,0.79343289]
[1750979666079,0.82312447,106980.0,106970.0,1.00578546]
[1750979666276,0.82312447,106980.0,106970.0,0.21719289]
[1750979666472,1.18392447,106980.0,106970.0,0.002]
[1750979666667,1.24316059,106980.0,106970.0,0.5788]
[1750979667166,1.24316059,106980.0,106970.0,0.57908]
[1750979667377,1.21672447,106980.0,106970.0,0.57908]
[1750979667578,1.21672447,106980.0,106970.0,0.002]
[1750979667775,1.21672447,106980.0,106970.0,0.57908]
[1750979668172,1.24316012,106980.0,106970.0,0.57908]
[1750979668378,1.0043719,106980.0,106970.0,0.57908]
[1750979668678,1.0308059,106980.0,106970.0,0.57908]
[1750979673278,1.0308059,106980.0,106970.0,0.57892]
[1750979674177,1.0308059,106980.0,106970.0,0.002]
[1750979674482,1.0308059,106980.0,106970.0,0.57892]
[1750979674680,1.0308059,106980.0,106970.0,0.002]
[1750979679081,0.3092059,106980.0,106970.0,0.002]
[1750979679282,1.0308059,106980.0,106970.0,0.002]
[1750979679984,0.3092059,106980.0,106970.0,0.002]
[1750979680185,1.0308059,106980.0,106970.0,0.002]
[1750979681585,0.3092059,106980.0,106970.0,0.002]
[1750979681783,1.0308059,106980.0,106970.0,0.002]
[1750979682887,0.3092059,106980.0,106970.0,0.002]
[1750979683085,1.0308059,106980.0,106970.0,0.002]
[1750979683284,0.3092059,106980.0,106970.0,0.002]
[1750979683484,1.0308059,106980.0,106970.0,0.002]
[1750979683882,0.3092059,106980.0,106970.0,0.002]
[1750979684186,1.0308059,106980.0,106970.0,0.002]
[1750979685187,1.0308059,106980.0,106970.0,1e-07]
[1750979686391,1.3908059,106980.0,106970.0,1e-07]
[1750979686580,0.1868894,106970.0,106960.0,9e-08]
[1750979686785,0.80745443,106970.0,106960.0,9e-08]
[1750979687283,1.38421443,106970.0,106960.0,9e-08]
[1750979687485,1.72421443,106970.0,106960.0,9e-08]
[1750979687686,1.39421443,106970.0,106960.0,9e-08]
[1750979687890,0.1869243,106950.0,106940.0,1.04086]
[1750979688183,0.6877243,106950.0,106940.0,0.19954]
[1750979688388,1.0011385,106950.0,106940.0,0.19954]
[1750979689185,1.0011385,106950.0,106940.0,0.20754]
[1750979689186,1.0031385,106950.0,106940.0,0.20754]
[1750979690390,1.0061385,106950.0,106940.0,0.21354]
[1750979691182,0.7229243,106950.0,106940.0,0.21354]
[1750979691383,1.0061385,106950.0,106940.0,0.21354]
[1750979691583,1.0061385,106950.0,106940.0,0.24544]
[1750979693387,1.0061385,106950.0,106940.0,0.21354]
[1750979693583,1.01546062,106950.0,106940.0,0.21354]
[1750979694585,1.01546062,106950.0,106940.0,0.0456]
[1750979694586,1.09304642,106950.0,106940.0,0.0456]
[1750979694782,1.15894642,106950.0,106940.0,0.0456]
[1750979695287,1.16894642,106950.0,106940.0,0.0456]
[1750979696395,1.19517753,106950.0,106940.0,0.0456]
[1750979699195,1.18585541,106950.0,106940.0,0.0456]
[1750979699394,1.11995541,106950.0,106940.0,0.0456]
[1750979700102,1.40316961,106950.0,106940.0,0.0456]
[1750979701794,1.37296961,106950.0,106940.0,0.0456]
[1750979702099,1.08973259,106950.0,106940.0,0.0779]
[1750979703200,1.3467385,106950.0,106940.0,0.0779]
[1750979704101,1.3467385,106950.0,106940.0,0.21358]
[1750979705303,1.0635243,106950.0,106940.0,0.21358]
[1750979705600,1.3467385,106950.0,106940.0,0.21358]
[1750979707203,1.0635243,106950.0,106940.0,0.21358]
[1750979707390,1.37297009,106950.0,106940.0,0.21358]
[1750979707594,1.3467385,106950.0,106940.0,0.21358]
[1750979707790,1.37297009,106950.0,106940.0,0.21358]
[1750979707997,1.0635243,106950.0,106940.0,0.21358]
[1750979708402,1.3467385,106950.0,106940.0,0.21358]
[1750979709497,1.0635243,106950.0,106940.0,0.21358]
[1750979709697,0.3419243,106950.0,106940.0,0.6256418]
[1750979710001,0.3419243,106950.0,106940.0,1.629496]
[1750979710205,0.3419243,106950.0,106940.0,1.55872155]
[1750979711207,0.7027243,106950.0,106940.0,0.79866]
[1750979711400,0.94141752,106950.0,106940.0,1.01109975]
[1750979711800,0.91516405,106950.0,106940.0,1.01109975]
[1750979712399,0.94142534,106950.0,106940.0,1.01109975]
[1750979712904,0.91516405,106950.0,106940.0,1.01109975]
[1750979715203,0.55436405,106950.0,106940.0,1.19804155]
[1750979718003,0.55436405,106950.0,106940.0,0.79866]
[1750979718207,0.55436405,106950.0,106940.0,1.01109975]
[1750979724515,0.91516405,106950.0,106940.0,1.01109975]
[1750979724815,0.94686405,106950.0,106940.0,1.01109975]
[1750979725315,0.94686405,106950.0,106940.0,0.79866]
[1750979725515,0.94686405,106950.0,106940.0,1.01109975]
[1750979726201,0.94686405,106950.0,106940.0,1.00921975]
[1750979726817,0.7344243,106950.0,106940.0,0.0456]
[1750979727114,0.7676243,106950.0,106940.0,0.73296]
[1750979727523,0.79416079,106950.0,106940.0,0.59432]
[1750979728714,0.79416079,106950.0,106940.0,0.59424]
[1750979731618,0.79416079,106950.0,106940.0,0.80667975]
[1750979732315,0.79416079,106950.0,106940.0,0.59424]
[1750979732512,0.82696079,106950.0,106940.0,0.59424]
[1750979732911,1.11028979,106950.0,106940.0,0.59424]
[1750979735816,1.11028979,106950.0,106940.0,0.62644]
[1750979740123,1.11028979,106950.0,106940.0,0.65944]
[1750979744025,1.11028979,106950.0,106940.0,0.0792]
[1750979744227,1.11028979,106950.0,106940.0,0.658]
[1750979749331,0.82696079,106950.0,106940.0,0.658]
[1750979753936,0.76096079,106950.0,106940.0,0.658]
[1750979755328,0.75696079,106950.0,106940.0,0.656]
[1750979755528,0.75896079,106950.0,106940.0,0.656]
[1750979755832,0.75896079,106950.0,106940.0,0.65]
[1750979756139,0.75796079,106950.0,106940.0,0.652]
[1750979756336,0.75696079,106950.0,106940.0,0.646]
[1750979756540,0.75696079,106950.0,106940.0,0.647]
[1750979758132,0.39616079,106950.0,106940.0,0.647]
[1750979758332,0.75696079,106950.0,106940.0,0.647]
[1750979760246,0.39616079,106950.0,106940.0,0.647]
[1750979760443,0.75696079,106950.0,106940.0,0.647]
[1750979763747,0.75696079,106950.0,106940.0,0.0682]
[1750979763949,0.75696079,106950.0,106940.0,0.6458]
[1750979765847,0.75696079,106950.0,106940.0,0.7828]
[1750979767150,0.75696079,106950.0,106940.0,0.8144]
[1750979768450,0.75686967,106950.0,106940.0,0.8144]
[1750979769954,0.72516967,106950.0,106940.0,0.8144]
[1750979770248,0.93768213,106950.0,106940.0,1.02691246]
[1750979770553,0.72516967,106950.0,106940.0,1.21385416]
[1750979770851,0.93768213,106950.0,106940.0,1.21385416]
[1750979773457,0.57688213,106950.0,106940.0,1.21385416]
[1750979773657,0.36436967,106950.0,106940.0,1.57465416]
[1750979773955,0.3379243,106950.0,106940.0,1.57465416]
[1750979775058,0.55043676,106950.0,106940.0,1.57465416]
[1750979776061,0.3379243,106950.0,106940.0,1.57465416]
[1750979776249,0.55043676,106950.0,106940.0,1.57465416]
[1750979777358,0.55043676,106950.0,106940.0,1.3621417]
[1750979777855,0.55043676,106950.0,106940.0,1.57465416]
[1750979778159,0.3379243,106950.0,106940.0,1.57465416]
[1750979786456,0.3379243,106950.0,106940.0,1.78716662]
[1750979792762,0.151,106950.0,106940.0,1.99967908]
[1750979792956,0.1979243,106950.0,106940.0,1.78716662]
[1750979798872,0.1979243,106950.0,106940.0,2.62876662]
[1750979799074,0.1979243,106950.0,106940.0,2.72209275]
[1750979799272,0.1979243,106950.0,106940.0,2.93460521]
[1750979799575,0.1979243,106950.0,106940.0,2.72209275]
[1750979800470,0.011,106950.0,106940.0,2.93460521]
[1750979800771,0.327078,106970.0,106960.0,0.1869068]
[1750979800961,0.457078,106970.0,106960.0,1.68589172]
[1750979801164,0.457078,106970.0,106960.0,1.77869172]
[1750979801779,0.13,106970.0,106960.0,1.77869172]
[1750979801970,0.3168893,106970.0,106960.0,1.77869172]
[1750979802168,0.3208893,106970.0,106960.0,1.77969172]
[1750979802767,0.3530893,106970.0,106960.0,1.77969172]
[1750979804778,0.3550893,106970.0,106960.0,1.78069172]
[1750979816789,0.3550893,106970.0,106960.0,1.3556668]
[1750979816996,0.3550893,106970.0,106960.0,1.78069172]
[1750979818600,0.3550893,106970.0,106960.0,1.3556668]
[1750979818793,0.3550893,106970.0,106960.0,1.78069172]
[1750979818994,0.92840176,106970.0,106960.0,0.21451246]
[1750979819300,1.00260176,106970.0,106960.0,0.92739246]
[1750979820099,1.00260176,106970.0,106960.0,1.11429926]
[1750979821195,1.00260176,106970.0,106960.0,1.32681172]
[1750979822402,0.7900893,106970.0,106960.0,1.13990492]
[1750979822598,1.00260176,106970.0,106960.0,1.13990492]
[1750979823302,0.7900893,106970.0,106960.0,1.11429926]
[1750979823600,1.00260176,106970.0,106960.0,1.32681172]
[1750979824006,0.64180176,106970.0,106960.0,1.32681172]
[1750979824306,1.00260176,106970.0,106960.0,0.92739246]
[1750979824806,1.00260176,106970.0,106960.0,0.21451246]
[1750979825005,1.00260176,106970.0,106960.0,0.92735246]
[1750979828205,1.00260176,106970.0,106960.0,1.13986492]
[1750979829605,0.64180176,106970.0,106960.0,1.32677172]
[1750979831006,0.4292893,106970.0,106960.0,1.32677172]
[1750979831207,0.64180176,106970.0,106960.0,1.32677172]
[1750979831606,0.4292893,106970.0,106960.0,1.32677172]
[1750979832509,0.4292893,106970.0,106960.0,1.35907172]
[1750979833615,0.3650893,106970.0,106960.0,1.38967172]
[1750979833813,0.3650893,106970.0,106960.0,1.42027172]
[1750979835214,0.3650893,106970.0,106960.0,1.78107172]
[1750979835414,0.3650893,106970.0,106960.0,1.42027172]
[1750979837521,0.3650893,106970.0,106960.0,1.78107172]
[1750979838517,0.3328893,106970.0,106960.0,1.78107172]
[1750979842727,0.146,106970.0,106960.0,1.99358418]
[1750979843025,0.3328893,106970.0,106960.0,1.79822075]
[1750979846918,0.016,106970.0,106960.0,1.79822075]
[1750979847519,0.016,106970.0,106960.0,1.89154688]
[1750979848327,0.2028893,106970.0,106960.0,1.89154688]
[1750979848824,0.016,106970.0,106960.0,1.89154688]
[1750979849224,0.2028893,106970.0,106960.0,1.89154688]
[1750979849424,0.2028893,106970.0,106960.0,1.79822075]
[1750979850023,0.016,106970.0,106960.0,1.79822075]
[1750979850819,0.016,106970.0,106960.0,2.01073321]
[1750979852131,0.016,106970.0,106960.0,2.10405934]
[1750979858927,0.1868725,106980.0,106970.0,0.1868893]
[1750979859130,0.3587176,106990.0,106980.0,0.1868718]
[1750979859331,0.4887176,106990.0,106980.0,1.61347672]
[1750979861130,0.4937176,106990.0,106980.0,1.61447672]
[1750979861833,0.4937176,106990.0,106980.0,1.62382605]
[1750979862223,0.4917176,106990.0,106980.0,1.62382605]
[1750979862424,0.4927176,106990.0,106980.0,1.62482605]
[1750979862831,0.4927176,106990.0,106980.0,1.19980113]
[1750979863027,0.4917176,106990.0,106980.0,1.62382605]
[1750979863227,0.5564176,106990.0,106980.0,1.59122605]
[1750979875046,0.5564176,106990.0,106980.0,1.23042605]
[1750979875246,0.5564176,106990.0,106980.0,1.59122605]
[1750979877646,0.4917176,106990.0,106980.0,1.59122605]
[1750979877849,0.4917176,106990.0,106980.0,1.62282605]
[1750979880948,0.4917176,106990.0,106980.0,1.65602605]
[1750979882356,0.3515693,106990.0,106980.0,1.65602605]
[1750979882647,0.1647,106990.0,106980.0,1.86853851]
[1750979882840,0.3198543,106990.0,106980.0,1.86853851]
[1750979883043,0.133,106990.0,106980.0,1.86853851]
[1750979883250,0.133,106990.0,106980.0,1.65602605]
[1750979883651,0.3198542,106990.0,106980.0,1.65602605]
[1750979883952,0.3198542,106990.0,106980.0,1.74935218]
[1750979884152,0.3198542,106990.0,106980.0,1.96186464]
[1750979884553,0.3198542,106990.0,106980.0,1.32432726]
[1750979884745,0.3198542,106990.0,106980.0,1.74935218]
[1750979891758,0.3198542,106990.0,106980.0,2.11015218]
[1750979892556,0.3198542,106990.0,106980.0,1.38855218]
[1750979892759,0.3198542,106990.0,106980.0,2.11015218]
[1750979892952,0.133,106990.0,106980.0,2.32266464]
[1750979894761,0.133,106990.0,106980.0,2.32266464]
[1750979895460,0.3198544,106990.0,106980.0,2.32266464]
[1750979895660,0.3198544,106990.0,106980.0,2.11015218]
[1750979896960,0.3198544,106990.0,106980.0,2.32266464]
[1750979897761,0.133,106990.0,106980.0,2.32266464]
[1750979897953,0.003,106990.0,106980.0,2.32266464]
[1750979898149,0.2802496,107010.0,107000.0,0.1868368]
[1750979898354,0.40913087,107010.0,107000.0,1.68402172]
[1750979898559,0.40913087,107010.0,107000.0,1.99183418]
[1750979898863,0.40913087,107010.0,107000.0,2.35263418]
[1750979899059,0.36242357,107010.0,107000.0,2.35263418]
[1750979899661,0.36342357,107010.0,107000.0,2.14112172]
[1750979900065,0.3178195,107010.0,107000.0,2.35363418]
[1750979900359,0.3178195,107010.0,107000.0,2.14112172]